fUSD/lending_fUSD_20240606
["ID","MTS","AMOUNT","RATE_DAILY","PERIOD"]
[328656736,1717679488522,-500.0,0.00028219,4]
[328656737,1717679488532,-151.0,0.00028219,7]
[328656738,1717679488542,-186.144423,0.00028219,7]
[328656739,1717679488551,-500.0,0.00028219,4]
[328656740,1717679488560,-500.0,0.00028219,4]
[328656741,1717679488570,-551.96,0.00028219,4]
[328656742,1717679488580,-500.0,0.00028219,4]
[328656743,1717679488590,-500.0,0.00028219,4]
[328656744,1717679488600,-500.0,0.00028219,4]
[328656745,1717679488609,-812.67,0.00028219,4]
[328656746,1717679488619,-500.0,0.00028219,4]
[328656747,1717679488628,-2243.88,0.00028219,4]
[328656748,1717679488638,-1646.49,0.00028219,4]
[328656749,1717679488647,-500.0,0.00028219,4]
[328656750,1717679488657,-3051.26,0.00028219,4]
[328656751,1717679488666,-500.0,0.00028219,4]
[328656752,1717679488675,-500.0,0.00028219,4]
[328656753,1717679488686,-500.0,0.00028219,4]
[328656754,1717679488695,-1040.93,0.00028219,4]
[328656755,1717679488705,-557.13,0.00028219,4]
[328656756,1717679488714,-500.0,0.00028219,4]
[328656757,1717679488724,-238.64452332,0.00028219,4]
[328656758,1717679488733,-500.0,0.00028219,4]
[328656759,1717679488743,-2619.1,0.00028219,4]
[328656760,1717679488753,-151.0,0.00028219,7]
[328656761,1717679488763,-151.0,0.00028219,7]
[328656762,1717679488774,-553.38,0.00028219,4]
[328656763,1717679488784,-1394.49,0.00028219,4]
[328656764,1717679488793,-500.0,0.00028219,4]
[328656765,1717679488804,-500.0,0.00028219,4]
[328656766,1717679488814,-536.71,0.00028219,4]
[328656767,1717679488823,-500.0,0.00028304,4]
[328656768,1717679488833,-277.509594,0.00028305,2]
[328656769,1717679488843,-14822.38255,0.00028305,2]
[328656770,1717679488853,-195.903584,0.00028305,2]
[328656771,1717679488863,-19620.448538,0.00028305,2]
[328656772,1717679488873,-7878.592609,0.00028305,2]
[328656773,1717679488883,-1234.498954,0.00028305,2]
[328656774,1717679488892,-790.143935,0.00028305,2]
[328656775,1717679488902,-327.727924,0.00028305,2]
[328656776,1717679488912,-166.451921,0.00028305,2]
[328656777,1717679488921,-500.0,0.00028436,2]
[328656778,1717679488931,-500.0,0.00028436,2]
[328656779,1717679488940,-7275.69546549,0.00028445,2]
[328656780,1717679488950,-150.0,0.00028468,2]
[328656781,1717679488959,-599.55,0.00028492,4]
[328656782,1717679488969,-599.55,0.00028492,4]
[328656783,1717679488978,-599.55,0.00028492,4]
[328656784,1717679488988,-599.55,0.00028492,4]
[328656785,1717679488998,-599.75244067,0.00028492,4]
[328656786,1717679489007,-562.6373497,0.00028493,4]
[328656787,1717679489017,-500.0,0.00028493,4]
[328656788,1717679489027,-500.0,0.00028493,4]
[328656789,1717679489037,-500.0,0.00028493,4]
[328656790,1717679489046,-500.0,0.00028493,4]
[328656791,1717679489055,-602.06,0.00028493,4]
[328656792,1717679489064,-561.6339736,0.00028493,4]
[328656793,1717679489074,-500.0,0.00028493,4]
[328656794,1717679489083,-500.0,0.00028493,4]
[328656795,1717679489092,-545.64060317,0.00028493,4]
[328656796,1717679489102,-500.0,0.00028493,4]
[328656797,1717679489111,-500.0,0.00028493,4]
[328656798,1717679489121,-548.6815144,0.00028493,4]
[328656799,1717679489130,-500.0,0.00028493,4]
[328656800,1717679489139,-500.0,0.00028493,4]
[328656801,1717679489149,-500.0,0.00028493,4]
[328656802,1717679489158,-500.0,0.00028493,4]
[328656803,1717679489168,-421.80518563,0.00028493,4]
[328656804,1717679489177,-304.46782957,0.00028493,4]
[328656805,1717679489187,-500.0,0.00028493,4]
[328656806,1717679489197,-500.0,0.00028493,4]
[328656807,1717679489207,-500.0,0.00028493,4]
[328656808,1717679489218,-500.0,0.00028493,4]
[328656809,1717679489227,-500.0,0.00028493,4]
[328656810,1717679489236,-500.0,0.00028493,4]
[328656811,1717679489246,-500.0,0.00028493,4]
[328656812,1717679489255,-382.9650451,0.00028493,4]
[328656813,1717679489265,-500.0,0.00028493,4]
[328656814,1717679489276,-500.0,0.00028493,4]
[328656815,1717679489286,-500.0,0.00028493,4]
[328656816,1717679489298,-500.0,0.00028493,4]
[328656817,1717679489307,-500.0,0.00028493,4]
[328656818,1717679489317,-500.0,0.00028493,4]
[328656819,1717679489326,-500.0,0.00028493,4]
[328656820,1717679489336,-705.94,0.00028493,4]
[328656821,1717679489347,-500.0,0.00028493,4]
[328656822,1717679489358,-500.0,0.00028493,4]
[328656823,1717679489367,-500.0,0.00028493,4]
[328656824,1717679489379,-500.0,0.00028493,4]
[328656825,1717679489389,-369.78955372,0.00028493,4]
[328656826,1717679489398,-500.0,0.00028493,4]
[328656827,1717679489408,-500.0,0.00028493,4]
[328656828,1717679489417,-500.0,0.00028493,4]
[328656829,1717679489426,-522.17144595,0.00028493,4]
[328656830,1717679489437,-500.0,0.00028493,4]
[328656831,1717679489446,-500.0,0.00028493,4]
[328656832,1717679489456,-500.0,0.00028493,4]
[328656833,1717679489465,-500.0,0.00028493,4]
[328656834,1717679489475,-500.0,0.00028493,4]
[328656835,1717679489484,-500.0,0.00028493,4]
[328656836,1717679489493,-567.87,0.00028493,4]
[328656837,1717679489503,-500.0,0.00028493,4]
[328656838,1717679489512,-547.69581053,0.00028493,4]
[328656839,1717679489521,-790.89,0.00028493,4]
[328656840,1717679489531,-500.0,0.00028493,4]
[328656841,1717679489541,-500.0,0.00028493,4]
[328656842,1717679489551,-553.97,0.00028493,4]
[328656843,1717679489560,-500.0,0.00028493,4]
[328656844,1717679489569,-500.0,0.00028493,4]
[328656845,1717679489579,-465.69187442,0.00028493,4]
[328656846,1717679489588,-500.0,0.00028493,4]
[328656847,1717679489597,-500.0,0.00028493,4]
[328656848,1717679489606,-536.78522893,0.00028493,4]
[328656849,1717679489615,-500.0,0.00028493,4]
[328656850,1717679489625,-500.0,0.00028493,4]
[328656851,1717679489634,-500.0,0.00028493,4]
[328656852,1717679489820,-500.0,0.00028493,4]
[328656853,1717679489830,-500.0,0.00028493,4]
[328656854,1717679489840,-500.0,0.00028493,4]
[328656855,1717679489849,-500.0,0.00028493,4]
[328656856,1717679489859,-500.0,0.00028493,4]
[328656857,1717679489868,-500.0,0.00028493,4]
[328656858,1717679489878,-500.0,0.00028493,4]
[328656859,1717679489887,-500.0,0.00028493,4]
[328656860,1717679489897,-500.0,0.00028493,2]
[328656861,1717679489906,-500.0,0.00028493,4]
[328656862,1717679489916,-500.0,0.00028493,4]
[328656863,1717679489926,-500.0,0.00028493,4]
[328656864,1717679489936,-500.0,0.00028493,4]
[328656865,1717679489945,-500.0,0.00028493,4]
[328656866,1717679489955,-500.0,0.00028493,4]
[328656867,1717679489964,-500.0,0.00028493,4]
[328656868,1717679489974,-1072.73,0.00028493,4]
[328656869,1717679489983,-500.0,0.00028493,4]
[328656870,1717679489993,-500.0,0.00028493,4]
[328656871,1717679490002,-500.0,0.00028493,4]
[328656872,1717679490012,-500.0,0.00028493,4]
[328656873,1717679490022,-500.0,0.00028493,4]
[328656874,1717679490033,-500.0,0.00028493,4]
[328656875,1717679490043,-500.0,0.00028493,4]
[328656876,1717679490052,-500.0,0.00028493,4]
[328656877,1717679490062,-562.5,0.00028493,4]
[328656878,1717679490072,-500.0,0.00028493,4]
[328656879,1717679490081,-500.0,0.00028493,4]
[328656880,1717679490091,-500.0,0.00028493,4]
[328656881,1717679490101,-500.0,0.00028493,4]
[328656882,1717679490110,-500.0,0.00028493,4]
[328656883,1717679490119,-500.0,0.00028493,4]
[328656884,1717679490129,-1257.38,0.00028493,4]
[328656885,1717679490139,-500.0,0.00028493,4]
[328656886,1717679490149,-500.0,0.00028493,4]
[328656887,1717679490159,-500.0,0.00028493,4]
[328656888,1717679490168,-500.0,0.00028493,4]
[328656889,1717679490178,-594.07,0.00028493,4]
[328656890,1717679490187,-660.28,0.00028493,4]
[328656891,1717679490197,-500.0,0.00028493,4]
[328656892,1717679490207,-500.0,0.00028493,4]
[328656893,1717679490217,-500.0,0.00028493,4]
[328656894,1717679490226,-873.96,0.00028493,4]
[328656895,1717679490235,-500.0,0.00028493,4]
[328656896,1717679490245,-500.0,0.00028493,4]
[328656897,1717679490254,-500.0,0.00028493,2]
[328656898,1717679490264,-500.0,0.00028493,4]
[328656899,1717679490273,-500.0,0.00028493,4]
[328656900,1717679490283,-500.0,0.00028493,4]
[328656901,1717679490294,-570.05,0.00028493,4]
[328656902,1717679490307,-500.0,0.00028493,4]
[328656903,1717679490317,-623.04437038,0.00028493,4]
[328656904,1717679490326,-1167.65,0.00028493,4]
[328656905,1717679490337,-500.0,0.00028493,4]
[328656906,1717679490346,-500.0,0.00028493,4]
[328656907,1717679490355,-1040.77,0.00028493,4]
[328656908,1717679490364,-500.0,0.00028493,4]
[328656909,1717679490377,-500.0,0.00028493,4]
[328656910,1717679490387,-730.53,0.00028493,4]
[328656911,1717679490397,-500.0,0.00028493,4]
[328656912,1717679490406,-500.0,0.00028493,4]
[328656913,1717679490415,-500.0,0.00028493,4]
[328656914,1717679490425,-500.0,0.00028493,4]
[328656915,1717679490435,-500.0,0.00028493,4]
[328656916,1717679490444,-1160.4,0.00028493,4]
[328656917,1717679490453,-500.0,0.00028493,4]
[328656918,1717679490464,-500.0,0.00028493,4]
[328656919,1717679490473,-500.0,0.00028493,4]
[328656920,1717679490483,-553.46113059,0.00028493,4]
[328656921,1717679490493,-500.0,0.00028493,4]
[328656922,1717679490502,-1005.2,0.00028493,4]
[328656923,1717679490512,-500.0,0.00028493,4]
[328656924,1717679490522,-500.0,0.00028493,4]
[328656925,1717679490533,-500.0,0.00028493,4]
[328656926,1717679490543,-295.471963,0.00028493,7]
[328656927,1717679490552,-500.0,0.00028493,4]
[328656928,1717679490562,-500.0,0.00028493,4]
[328656929,1717679490571,-500.0,0.00028493,4]
[328656930,1717679490581,-500.0,0.00028493,4]
[328656931,1717679490591,-295.471963,0.00028493,7]
[328656932,1717679490600,-543.83,0.00028493,4]
[328656933,1717679490609,-953.7,0.00028493,4]
[328656934,1717679490619,-500.0,0.00028493,4]
[328656935,1717679490629,-500.0,0.00028493,4]
[328656936,1717679490638,-500.0,0.00028493,4]
[328656937,1717679490648,-500.0,0.00028493,4]
[328656938,1717679490657,-500.0,0.00028493,4]
[328656939,1717679490667,-714.89,0.00028493,4]
[328656940,1717679490676,-537.3,0.00028493,4]
[328656941,1717679490686,-500.0,0.00028493,4]
[328656942,1717679490696,-210.65918087,0.00028493,4]
[328656943,1717679490706,-500.0,0.00028493,4]
[328656944,1717679490716,-500.0,0.00028493,4]
[328656945,1717679490726,-500.0,0.00028493,4]
[328656946,1717679490737,-1078.37,0.00028493,4]
[328656947,1717679490747,-500.0,0.00028493,4]
[328656948,1717679490756,-500.0,0.00028493,4]
[328656949,1717679490767,-655.81,0.00028493,4]
[328656950,1717679490779,-500.0,0.00028493,4]
[328656951,1717679490788,-500.0,0.00028493,4]
[328656952,1717679490798,-541.66,0.00028493,4]
[328656953,1717679490809,-500.0,0.00028493,4]
[328656954,1717679490819,-500.0,0.00028493,4]
[328656955,1717679490829,-632.72,0.00028493,4]
[328656956,1717679490839,-500.0,0.00028493,4]
[328656957,1717679490849,-500.0,0.00028493,4]
[328656958,1717679490859,-500.0,0.00028493,4]
[328656959,1717679490868,-500.0,0.00028493,4]
[328656960,1717679490878,-540.85,0.00028493,4]
[328656961,1717679490887,-497.84430165,0.00028493,4]
[328656962,1717679490896,-250.0,0.00028493,4]
[328656963,1717679490905,-500.0,0.00028493,4]
[328656964,1717679490915,-500.0,0.00028493,4]
[328656965,1717679490925,-500.0,0.00028493,4]
[328656966,1717679490935,-500.0,0.00028493,4]
[328656967,1717679490944,-500.0,0.00028493,4]
[328656968,1717679490954,-500.0,0.00028493,4]
[328656969,1717679490963,-500.0,0.00028493,4]
[328656970,1717679490973,-1540.24,0.00028493,4]
[328656971,1717679490983,-304.03844162,0.00028493,4]
[328656972,1717679490992,-616.01,0.00028493,4]
[328656973,1717679491002,-500.0,0.00028493,4]
[328656974,1717679491011,-631.52,0.00028493,4]
[328656975,1717679491021,-500.0,0.00028493,4]
[328656976,1717679491033,-500.0,0.00028493,4]
[328656977,1717679491042,-500.0,0.00028493,4]
[328656978,1717679491052,-500.0,0.00028493,4]
[328656979,1717679491061,-3814.34,0.00028493,4]
[328656980,1717679491070,-500.0,0.00028493,4]
[328656981,1717679491080,-179.451419,0.00028493,7]
[328656982,1717679491089,-169.41752754,0.00028493,4]
[328656983,1717679491098,-500.0,0.00028493,4]
[328656984,1717679491108,-500.0,0.00028493,4]
[328656985,1717679491117,-500.0,0.00028493,4]
[328656986,1717679491126,-500.0,0.00028493,4]
[328656987,1717679491135,-500.0,0.00028493,4]
[328656988,1717679491145,-179.451419,0.00028493,7]
[328656989,1717679491155,-833.49,0.00028493,4]
[328656990,1717679491164,-500.0,0.00028493,4]
[328656991,1717679491174,-500.0,0.00028493,4]
[328656992,1717679491184,-500.0,0.00028493,4]
[328656993,1717679491194,-644.57,0.00028493,4]
[328656994,1717679491203,-500.0,0.00028493,4]
[328656995,1717679491213,-500.0,0.00028493,4]
[328656996,1717679491222,-1007.24,0.00028493,4]
[328656997,1717679491232,-500.0,0.00028493,4]
[328656998,1717679491242,-1055.19,0.00028493,4]
[328656999,1717679491253,-875.26,0.00028493,4]
[328657000,1717679491263,-500.0,0.00028493,4]
[328657001,1717679491275,-500.0,0.00028493,4]
[328657002,1717679491286,-500.0,0.00028493,4]
[328657003,1717679491297,-500.0,0.00028493,4]
[328657004,1717679491308,-500.0,0.00028493,4]
[328657005,1717679491318,-500.0,0.00028493,4]
[328657006,1717679491330,-561.44,0.00028493,4]
[328657007,1717679491341,-500.0,0.00028493,4]
[328657008,1717679491363,-759.25,0.00028493,4]
[328657009,1717679491382,-500.0,0.00028493,4]
[328657010,1717679491392,-500.0,0.00028493,4]
[328657011,1717679491406,-500.0,0.00028493,4]
[328657012,1717679491430,-544.17,0.00028493,4]
[328657013,1717679491439,-500.0,0.00028493,4]
[328657014,1717679491448,-500.0,0.00028493,4]
[328657015,1717679491458,-174.83085855,0.00028493,4]
[328657016,1717679491467,-500.0,0.00028493,4]
[328657017,1717679491476,-500.0,0.00028493,4]
[328657018,1717679491486,-500.0,0.00028493,4]
[328657019,1717679491495,-754.39,0.00028493,4]
[328657020,1717679491505,-500.0,0.00028493,4]
[328657021,1717679491513,-500.0,0.00028493,4]
[328657022,1717679491522,-852.58,0.00028493,4]
[328657023,1717679491533,-500.0,0.00028493,4]
[328657024,1717679491542,-500.0,0.00028493,4]
[328657025,1717679491551,-574.56,0.00028493,4]
[328657026,1717679491560,-500.0,0.00028493,4]
[328657027,1717679491570,-623.99,0.00028493,4]
[328657028,1717679491580,-618.6,0.00028493,4]
[328657029,1717679491591,-500.0,0.00028493,4]
[328657030,1717679491602,-500.0,0.00028493,4]
[328657031,1717679491613,-735.41,0.00028493,4]
[328657032,1717679491622,-500.0,0.00028493,4]
[328657033,1717679491633,-500.0,0.00028493,4]
[328657034,1717679491642,-572.16160482,0.00028493,4]
[328657035,1717679491651,-500.0,0.00028493,4]
[328657036,1717679491660,-604.46,0.00028493,4]
[328657037,1717679491670,-515.29,0.00028493,4]
[328657038,1717679491679,-500.0,0.00028493,4]
[328657039,1717679491688,-500.0,0.00028493,4]
[328657040,1717679491699,-624.01,0.00028493,4]
[328657041,1717679491708,-500.0,0.00028493,4]
[328657042,1717679491717,-701.26,0.00028493,4]
[328657043,1717679491728,-500.0,0.00028493,4]
[328657044,1717679491738,-500.0,0.00028493,4]
[328657045,1717679491747,-949.7,0.00028493,4]
[328657046,1717679491757,-167.17850486,0.00028493,4]
[328657047,1717679491767,-500.0,0.00028493,4]
[328657048,1717679491777,-500.0,0.00028493,4]
[328657049,1717679491786,-500.0,0.00028493,4]
[328657050,1717679491796,-500.0,0.00028493,4]
[328657051,1717679491805,-500.0,0.00028493,4]
[328657052,1717679491815,-500.0,0.00028493,4]
[328657053,1717679491824,-500.0,0.00028493,4]
[328657054,1717679491834,-500.0,0.00028493,4]
[328657055,1717679491843,-652.57,0.00028493,4]
[328657056,1717679491852,-624.92,0.00028493,4]
[328657057,1717679491862,-500.0,0.00028493,4]
[328657058,1717679491872,-500.0,0.00028493,4]
[328657059,1717679491881,-500.0,0.00028493,4]
[328657060,1717679491890,-500.0,0.00028493,4]
[328657061,1717679491899,-500.0,0.00028493,4]
[328657062,1717679491909,-500.0,0.00028493,4]
[328657063,1717679491918,-500.0,0.00028493,4]
[328657064,1717679491928,-500.0,0.00028493,4]
[328657065,1717679491937,-269.777891,0.00028493,7]
[328657066,1717679491946,-269.777891,0.00028493,7]
[328657067,1717679491956,-500.0,0.00028493,4]
[328657068,1717679491965,-500.0,0.00028493,4]
[328657069,1717679491974,-500.0,0.00028493,4]
[328657070,1717679491984,-694.2,0.00028493,4]
[328657071,1717679491993,-269.777891,0.00028493,7]
[328657072,1717679492003,-269.777883,0.00028493,7]
[328657073,1717679492012,-500.0,0.00028493,4]
[328657074,1717679492022,-500.0,0.00028493,4]
[328657075,1717679492033,-500.0,0.00028493,4]
[328657076,1717679492042,-2878.4,0.00028493,4]
[328657077,1717679492051,-196.2,0.00028493,4]
[328657078,1717679492060,-534.4,0.00028493,2]
[328657079,1717679492070,-500.0,0.00028493,4]
[328657080,1717679492079,-151.0,0.00028493,7]
[328657081,1717679492089,-694.35,0.00028493,4]
[328657082,1717679492099,-229.19145,0.00028493,7]
[328657083,1717679492108,-543.75,0.00028493,4]
[328657084,1717679492118,-500.0,0.00028493,4]
[328657085,1717679492127,-500.0,0.00028493,4]
[328657086,1717679492136,-500.0,0.00028493,4]
[328657087,1717679492145,-500.0,0.00028493,4]
[328657088,1717679492155,-500.0,0.00028493,4]
[328657089,1717679492164,-632.21516416,0.00028493,4]
[328657090,1717679492174,-587.54224252,0.00028493,4]
[328657091,1717679492184,-500.0,0.00028493,4]
[328657092,1717679492193,-500.0,0.00028493,4]
[328657093,1717679492202,-561.63,0.00028493,4]
[328657094,1717679492211,-777.5,0.00028493,4]
[328657095,1717679492220,-500.0,0.00028493,4]
[328657096,1717679492229,-728.03,0.00028493,4]
[328657097,1717679492238,-500.0,0.00028493,4]
[328657098,1717679492248,-500.0,0.00028493,4]
[328657099,1717679492257,-525.97,0.00028493,4]
[328657100,1717679492267,-604.74194144,0.00028493,4]
[328657101,1717679492277,-500.0,0.00028493,4]
[328657102,1717679492349,-835.99,0.00028493,4]
[328657103,1717679492358,-500.0,0.00028493,4]
[328657104,1717679492367,-500.0,0.00028493,4]
[328657105,1717679492378,-500.0,0.00028493,4]
[328657106,1717679492388,-1147.48,0.00028493,4]
[328657107,1717679492398,-500.0,0.00028493,4]
[328657108,1717679492408,-503.17,0.00028493,4]
[328657109,1717679492417,-500.0,0.00028493,4]
[328657110,1717679492427,-500.0,0.00028493,4]
[328657111,1717679492436,-253.527959,0.00028493,7]
[328657112,1717679492445,-505.84,0.00028493,4]
[328657113,1717679492454,-253.527959,0.00028493,7]
[328657114,1717679492463,-253.527959,0.00028493,7]
[328657115,1717679492472,-253.527957,0.00028493,7]
[328657116,1717679492481,-500.0,0.00028493,4]
[328657117,1717679492490,-687.52,0.00028493,4]
[328657118,1717679492500,-500.0,0.00028493,4]
[328657119,1717679492509,-612.83155205,0.00028493,4]
[328657120,1717679492519,-557.11,0.00028493,4]
[328657121,1717679492529,-500.0,0.00028493,4]
[328657122,1717679492538,-500.0,0.00028493,4]
[328657123,1717679492547,-259.94,0.00028493,4]
[328657124,1717679492557,-500.0,0.00028493,4]
[328657125,1717679492566,-500.0,0.00028493,4]
[328657126,1717679492575,-622.96,0.00028493,4]
[328657127,1717679492585,-500.0,0.00028493,4]
[328657128,1717679492595,-610.82,0.00028493,4]
[328657129,1717679492604,-772.9,0.00028493,4]
[328657130,1717679492612,-500.0,0.00028493,4]
[328657131,1717679492622,-246.401026,0.00028493,7]
[328657132,1717679492632,-500.0,0.00028493,4]
[328657133,1717679492641,-246.401026,0.00028493,7]
[328657134,1717679492650,-500.0,0.00028493,4]
[328657135,1717679492659,-500.0,0.00028493,4]
[328657136,1717679492669,-500.0,0.00028493,4]
[328657137,1717679492678,-500.0,0.00028493,4]
[328657138,1717679492688,-500.0,0.00028493,4]
[328657139,1717679492697,-500.0,0.00028493,4]
[328657140,1717679492707,-246.401026,0.00028493,7]
[328657141,1717679492716,-500.0,0.00028493,4]
[328657142,1717679492726,-246.401028,0.00028493,7]
[328657143,1717679492735,-605.06,0.00028493,4]
[328657144,1717679492745,-500.0,0.00028493,4]
[328657145,1717679492755,-576.66,0.00028493,4]
[328657146,1717679492764,-505.74,0.00028493,4]
[328657147,1717679492774,-500.0,0.00028493,4]
[328657148,1717679492783,-500.0,0.00028493,4]
[328657149,1717679492792,-876.11,0.00028493,2]
[328657150,1717679492801,-500.0,0.00028493,4]
[328657151,1717679492811,-500.0,0.00028493,4]
[328657152,1717679492821,-500.0,0.00028493,4]
[328657153,1717679492830,-500.0,0.00028493,4]
[328657154,1717679492839,-500.0,0.00028493,4]
[328657155,1717679492848,-988.28,0.00028493,4]
[328657156,1717679492858,-500.0,0.00028493,4]
[328657157,1717679492868,-598.37,0.00028493,4]
[328657158,1717679492877,-523.60986406,0.00028493,4]
[328657159,1717679492886,-500.0,0.00028493,4]
[328657160,1717679492895,-500.0,0.00028493,4]
[328657161,1717679492905,-660.45,0.00028493,4]
[328657162,1717679492914,-500.0,0.00028493,4]
[328657163,1717679492923,-500.0,0.00028493,4]
[328657164,1717679492932,-500.0,0.00028493,4]
[328657165,1717679492941,-500.0,0.00028493,4]
[328657166,1717679492951,-500.0,0.00028493,4]
[328657167,1717679492960,-500.0,0.00028493,4]
[328657168,1717679492970,-500.0,0.00028493,4]
[328657169,1717679492979,-500.0,0.00028493,4]
[328657170,1717679492988,-500.0,0.00028493,4]
[328657171,1717679492999,-500.0,0.00028493,4]
[328657172,1717679493010,-500.0,0.00028493,4]
[328657173,1717679493019,-500.0,0.00028493,4]
[328657174,1717679493029,-500.0,0.00028493,4]
[328657175,1717679493039,-500.0,0.00028493,4]
[328657176,1717679493049,-500.0,0.00028493,4]
[328657177,1717679493060,-500.0,0.00028493,4]
[328657178,1717679493071,-715.91,0.00028493,4]
[328657179,1717679493082,-9815.91,0.00028493,4]
[328657180,1717679493091,-500.0,0.00028493,4]
[328657181,1717679493102,-500.0,0.00028493,4]
[328657182,1717679493113,-500.0,0.00028493,4]
[328657183,1717679493123,-648.22,0.00028493,4]
[328657184,1717679493133,-500.0,0.00028493,4]
[328657185,1717679493143,-556.32403313,0.00028493,4]
[328657186,1717679493153,-500.0,0.00028493,4]
[328657187,1717679493164,-500.0,0.00028493,4]
[328657188,1717679493174,-198.48357692,0.00028493,4]
[328657189,1717679493183,-964.57,0.00028493,4]
[328657190,1717679493193,-1195.32,0.00028493,4]
[328657191,1717679493202,-500.0,0.00028493,4]
[328657192,1717679493211,-500.0,0.00028493,4]
[328657193,1717679493221,-151.0,0.00028493,7]
[328657194,1717679493231,-896.47,0.00028493,4]
[328657195,1717679493241,-500.0,0.00028493,4]
[328657196,1717679493251,-500.0,0.00028493,4]
[328657197,1717679493260,-702.81,0.00028493,4]
[328657198,1717679493270,-1815.88,0.00028493,4]
[328657199,1717679493280,-500.0,0.00028493,4]
[328657200,1717679493290,-500.0,0.00028493,4]
[328657201,1717679493304,-566.42,0.00028493,4]
[328657202,1717679493314,-3495.31,0.00028493,4]
[328657203,1717679493324,-500.0,0.00028493,4]
[328657204,1717679493334,-500.0,0.00028493,4]
[328657205,1717679493343,-500.0,0.00028493,4]
[328657206,1717679493354,-500.0,0.00028493,4]
[328657207,1717679493363,-500.0,0.00028493,4]
[328657208,1717679493374,-2493.42,0.00028493,4]
[328657209,1717679493384,-500.0,0.00028493,4]
[328657210,1717679493393,-500.0,0.00028493,4]
[328657211,1717679493402,-151.0,0.00028493,7]
[328657212,1717679493412,-500.0,0.00028493,4]
[328657213,1717679493422,-753.07,0.00028493,4]
[328657214,1717679493431,-500.0,0.00028493,4]
[328657215,1717679493440,-2852.08,0.00028493,4]
[328657216,1717679493450,-500.0,0.00028493,4]
[328657217,1717679493459,-500.0,0.00028493,4]
[328657218,1717679493469,-500.0,0.00028493,4]
[328657219,1717679493479,-500.0,0.00028493,4]
[328657220,1717679493489,-500.0,0.00028493,4]
[328657221,1717679493498,-564.89007817,0.00028493,4]
[328657222,1717679493508,-500.0,0.00028493,4]
[328657223,1717679493517,-500.0,0.00028493,4]
[328657224,1717679493527,-771.5,0.00028493,4]
[328657225,1717679493536,-500.0,0.00028493,4]
[328657226,1717679493547,-500.0,0.00028493,4]
[328657227,1717679493556,-1734.18,0.00028493,4]
[328657228,1717679493565,-759.84,0.00028493,4]
[328657229,1717679493575,-500.0,0.00028493,4]
[328657230,1717679493584,-619.91,0.00028493,4]
[328657231,1717679493594,-562.34956148,0.00028493,4]
[328657232,1717679493603,-1121.86,0.00028493,4]
[328657233,1717679493613,-500.0,0.00028493,4]
[328657234,1717679493622,-500.0,0.00028493,4]
[328657235,1717679493631,-500.0,0.00028493,4]